fUSD/lending_fUSD_20241224
["ID","MTS","AMOUNT","RATE_DAILY","PERIOD"]
[346554016,1735081834931,-500.0,0.00012994,2]
[346554017,1735081834945,-500.0,0.00012994,2]
[346554018,1735081834960,-921.23,0.00012994,2]
[346554019,1735081834974,-500.0,0.00012994,2]
[346554020,1735081834989,-500.0,0.00012994,2]
[346554021,1735081835003,-500.0,0.00012994,2]
[346554022,1735081835016,-500.0,0.00012994,2]
[346554023,1735081835031,-500.0,0.00012994,2]
[346554024,1735081835045,-500.0,0.00012994,2]
[346554025,1735081835060,-500.0,0.00012994,2]
[346554026,1735081835074,-500.0,0.00012994,2]
[346554027,1735081835088,-831.01,0.00012994,2]
[346554028,1735081835102,-500.0,0.00012994,2]
[346554029,1735081835118,-500.0,0.00012994,2]
[346554030,1735081835134,-500.0,0.00012994,2]
[346554031,1735081835150,-500.0,0.00012994,2]
[346554032,1735081835164,-500.0,0.00012994,2]
[346554033,1735081835178,-500.0,0.00012994,2]
[346554034,1735081835193,-500.0,0.00012994,2]
[346554035,1735081835208,-500.0,0.00012994,2]
[346554036,1735081835222,-500.0,0.00012994,2]
[346554037,1735081835237,-500.0,0.00012994,2]
[346554038,1735081835251,-500.0,0.00012994,2]
[346554039,1735081835265,-500.0,0.00012994,2]
[346554040,1735081835280,-500.0,0.00012994,2]
[346554041,1735081835295,-500.0,0.00012994,2]
[346554042,1735081835309,-500.0,0.00012994,2]
[346554043,1735081835324,-2923.22,0.00012994,2]
[346554044,1735081835339,-501.19208091,0.00012994,2]
[346554045,1735081835354,-500.0,0.00012994,2]
[346554046,1735081835368,-500.0,0.00012994,2]
[346554047,1735081835382,-500.0,0.00012994,2]
[346554048,1735081835397,-500.0,0.00012994,2]
[346554049,1735081835412,-500.0,0.00012994,2]
[346554050,1735081835427,-500.0,0.00012994,2]
[346554051,1735081835443,-500.0,0.00012994,2]
[346554052,1735081835458,-500.0,0.00012994,2]
[346554053,1735081835472,-500.45941026,0.00012994,2]
[346554054,1735081835489,-500.0,0.00012994,2]
[346554055,1735081835504,-500.0,0.00012994,2]
[346554056,1735081835519,-500.0,0.00012994,2]
[346554057,1735081835534,-500.0,0.00012994,2]
[346554058,1735081835548,-500.0,0.00012994,2]
[346554059,1735081835563,-380.09410355,0.00012994,2]
[346554060,1735081835579,-500.0,0.00012994,2]
[346554061,1735081835595,-500.0,0.00012994,2]
[346554062,1735081835609,-500.0,0.00012994,2]
[346554063,1735081835624,-500.0,0.00012994,2]
[346554064,1735081835639,-500.0,0.00012994,2]
[346554065,1735081835653,-500.0,0.00012994,2]
[346554066,1735081835668,-700.19,0.00012994,2]
[346554067,1735081835683,-500.0,0.00012994,2]
[346554068,1735081835697,-500.0,0.00012994,2]
[346554069,1735081835712,-500.0,0.00012994,2]
[346554070,1735081835729,-500.0,0.00012994,2]
[346554071,1735081835745,-500.0,0.00012994,2]
[346554072,1735081835759,-500.0,0.00012994,2]
[346554073,1735081836009,-500.0,0.00012994,2]
[346554074,1735081836018,-501.69647689,0.00012994,2]
[346554075,1735081836028,-500.0,0.00012994,2]
[346554076,1735081836038,-500.0,0.00012994,2]
[346554077,1735081836047,-500.0,0.00012994,2]
[346554078,1735081836057,-500.0,0.00012994,2]
[346554079,1735081836066,-543.17,0.00012994,2]
[346554080,1735081836076,-500.0,0.00012994,2]
[346554081,1735081836085,-500.0,0.00012994,2]
[346554082,1735081836095,-721.6,0.00012994,2]
[346554083,1735081836104,-500.0,0.00012994,2]
[346554084,1735081836114,-500.0,0.00012994,2]
[346554085,1735081836123,-501.2243435,0.00012994,2]
[346554086,1735081836131,-500.0,0.00012994,2]
[346554087,1735081836141,-500.0,0.00012994,2]
[346554088,1735081836150,-500.0,0.00012994,2]
[346554089,1735081836160,-500.0,0.00012994,2]
[346554090,1735081836169,-500.0,0.00012994,2]
[346554091,1735081836178,-562.21,0.00012994,2]
[346554092,1735081836187,-500.0,0.00012994,2]
[346554093,1735081836196,-500.0,0.00012994,2]
[346554094,1735081836205,-502.34986384,0.00012994,2]
[346554095,1735081836214,-500.0,0.00012994,2]
[346554096,1735081836224,-2050.98,0.00012994,2]
[346554097,1735081836233,-500.0,0.00012994,2]
[346554098,1735081836242,-824.35,0.00012994,2]
[346554099,1735081836251,-776.65,0.00012994,2]
[346554100,1735081836260,-500.0,0.00012994,2]
[346554101,1735081836269,-380.92476106,0.00012994,2]
[346554102,1735081836278,-500.0,0.00012994,2]
[346554103,1735081836287,-500.0,0.00012994,2]
[346554104,1735081836296,-500.0,0.00012994,2]
[346554105,1735081836306,-657.95,0.00012994,2]
[346554106,1735081836315,-500.0,0.00012994,2]
[346554107,1735081836325,-666.6,0.00012994,2]
[346554108,1735081836334,-500.0,0.00012994,2]
[346554109,1735081836343,-500.0,0.00012994,2]
[346554110,1735081836352,-1413.4,0.00012994,2]
[346554111,1735081836363,-1138.35,0.00012994,2]
[346554112,1735081836374,-376.36237257,0.00012994,2]
[346554113,1735081836383,-500.0,0.00012994,2]
[346554114,1735081836393,-518.34,0.00012994,2]
[346554115,1735081836402,-571.47,0.00012994,2]
[346554116,1735081836410,-500.0,0.00012994,2]
[346554117,1735081836419,-500.0,0.00012994,2]
[346554118,1735081836428,-2521.1,0.00012994,2]
[346554119,1735081836438,-727.46,0.00012994,2]
[346554120,1735081836447,-500.0,0.00012994,2]
[346554121,1735081836456,-500.0,0.00012994,2]
[346554122,1735081836465,-500.0,0.00012994,2]
[346554123,1735081836475,-500.0,0.00012994,2]
[346554124,1735081836485,-500.0,0.00012994,2]
[346554125,1735081836495,-343.97391255,0.00012994,2]
[346554126,1735081836504,-500.0,0.00012994,2]
[346554127,1735081836514,-835.09,0.00012994,2]
[346554128,1735081836523,-500.0,0.00012994,2]
[346554129,1735081836533,-645.4,0.00012994,2]
[346554130,1735081836543,-1269.46,0.00012994,2]
[346554131,1735081836553,-500.0,0.00012994,2]
[346554132,1735081836562,-500.0,0.00012994,2]
[346554133,1735081836573,-533.31,0.00012994,2]
[346554134,1735081836583,-500.0,0.00012994,2]
[346554135,1735081836592,-500.0,0.00012994,2]
[346554136,1735081836601,-1307.48,0.00012994,2]
[346554137,1735081836610,-500.0,0.00012994,2]
[346554138,1735081836619,-500.0,0.00012994,2]
[346554139,1735081836628,-500.0,0.00012994,2]
[346554140,1735081836638,-671.48,0.00012994,2]
[346554141,1735081836647,-501.45335341,0.00012994,2]
[346554142,1735081836657,-500.0,0.00012994,2]
[346554143,1735081836666,-500.0,0.00012994,2]
[346554144,1735081836675,-500.0,0.00012994,2]
[346554145,1735081836685,-1157.74,0.00012994,2]
[346554146,1735081836694,-1005.12,0.00012994,2]
[346554147,1735081836703,-500.0,0.00012994,2]
[346554148,1735081836712,-500.0,0.00012994,2]
[346554149,1735081836723,-500.72871095,0.00012994,2]
[346554150,1735081836733,-501.05645056,0.00012994,2]
[346554151,1735081836742,-501.81079703,0.00012994,2]
[346554152,1735081836752,-803.2,0.00012994,2]
[346554153,1735081836760,-500.0,0.00012994,2]
[346554154,1735081836771,-500.0,0.00012994,2]
[346554155,1735081836781,-500.0,0.00012994,2]
[346554156,1735081836790,-3445.51,0.00012994,2]
[346554157,1735081836801,-500.0,0.00012994,2]
[346554158,1735081836810,-637.91035672,0.00012994,2]
[346554159,1735081836819,-500.0,0.00012994,2]
[346554160,1735081836830,-955.72,0.00012994,2]
[346554161,1735081836839,-500.0,0.00012994,2]
[346554162,1735081836848,-1762.35,0.00012994,2]
[346554163,1735081836858,-500.0,0.00012994,2]
[346554164,1735081836867,-500.0,0.00012994,2]
[346554165,1735081836876,-909.67,0.00012994,2]
[346554166,1735081836886,-500.0,0.00012994,2]
[346554167,1735081836896,-501.04682656,0.00012994,2]
[346554168,1735081836905,-500.0,0.00012994,2]
[346554169,1735081836915,-1756.72,0.00012994,2]
[346554170,1735081836924,-500.0,0.00012994,2]
[346554171,1735081836934,-500.0,0.00012994,2]
[346554172,1735081836943,-500.0,0.00012994,2]
[346554173,1735081836952,-631.71,0.00012994,2]
[346554174,1735081836962,-500.0,0.00012994,2]
[346554175,1735081836971,-500.0,0.00012994,2]
[346554176,1735081836980,-500.0,0.00012994,2]
[346554177,1735081836989,-803.91,0.00012994,2]
[346554178,1735081836999,-500.0,0.00012994,2]
[346554179,1735081837008,-500.0,0.00012994,2]
[346554180,1735081837017,-500.0,0.00012994,2]
[346554181,1735081837027,-500.0,0.00012994,2]
[346554182,1735081837036,-500.0,0.00012994,2]
[346554183,1735081837045,-2785.39,0.00012994,2]
[346554184,1735081837055,-500.0,0.00012994,2]
[346554185,1735081837065,-951.08,0.00012994,2]
[346554186,1735081837075,-500.0,0.00012994,2]
[346554187,1735081837084,-500.0,0.00012994,2]
[346554188,1735081837093,-500.0,0.00012994,2]
[346554189,1735081837103,-1294.26,0.00012994,2]
[346554190,1735081837112,-500.0,0.00012994,2]
[346554191,1735081837121,-606.64936136,0.00012994,2]
[346554192,1735081837130,-1808.04,0.00012994,2]
[346554193,1735081837139,-500.0,0.00012994,2]
[346554194,1735081837148,-1166.59,0.00012994,2]
[346554195,1735081837158,-809.88,0.00012994,2]
[346554196,1735081837167,-500.0,0.00012994,2]
[346554197,1735081837176,-3840.0,0.00012994,2]
[346554198,1735081837186,-500.0,0.00012994,2]
[346554199,1735081837195,-500.0,0.00012994,2]
[346554200,1735081837204,-500.0,0.00012994,2]
[346554201,1735081837214,-500.0,0.00012994,2]
[346554202,1735081837223,-500.0,0.00012994,2]
[346554203,1735081837232,-500.0,0.00012994,2]
[346554204,1735081837241,-500.0,0.00012994,2]
[346554205,1735081837251,-500.0,0.00012994,2]
[346554206,1735081837260,-1861.83,0.00012994,2]
[346554207,1735081837269,-1827.53,0.00012994,2]
[346554208,1735081837278,-6749.56,0.00012994,2]
[346554209,1735081837288,-500.0,0.00012994,2]
[346554210,1735081837297,-5782.66,0.00012994,2]
[346554211,1735081837306,-927.01,0.00012994,2]
[346554212,1735081837315,-1589.75,0.00012994,2]
[346554213,1735081837325,-500.0,0.00012994,2]
[346554214,1735081837335,-2297.51,0.00012994,2]
[346554215,1735081837344,-1498.31,0.00012994,2]
[346554216,1735081837354,-534.88,0.00012994,2]
[346554217,1735081837364,-500.0,0.00012994,2]
[346554218,1735081837374,-500.0,0.00012994,2]
[346554219,1735081837383,-555.05560346,0.00012994,2]
[346554220,1735081837393,-502.35944491,0.00012994,2]
[346554221,1735081837403,-500.0,0.00012994,2]
[346554222,1735081837413,-500.0,0.00012994,2]
[346554223,1735081837422,-500.0,0.00012994,2]
[346554224,1735081837432,-500.0,0.00012994,2]
[346554225,1735081837441,-500.0,0.00012994,2]
[346554226,1735081837451,-689.64,0.00012994,2]
[346554227,1735081837460,-500.0,0.00012994,2]
[346554228,1735081837469,-3078.82,0.00012994,2]
[346554229,1735081837480,-11460.4,0.00012994,2]
[346554230,1735081837489,-896.28,0.00012994,2]
[346554231,1735081837499,-459.78403743,0.00012994,2]
[346554232,1735081837508,-500.0,0.00012994,2]
[346554233,1735081837518,-500.0,0.00012994,2]
[346554234,1735081837527,-500.0,0.00012994,2]
[346554235,1735081837537,-500.0,0.00012994,2]
[346554236,1735081837546,-1374.8,0.00012994,2]
[346554237,1735081837555,-500.0,0.00012994,2]
[346554238,1735081837565,-1598.88,0.00012994,2]
[346554239,1735081837576,-791.49,0.00012994,2]
[346554240,1735081837585,-500.0,0.00012994,2]
[346554241,1735081837595,-500.0,0.00012994,2]
[346554242,1735081837604,-500.0,0.00012994,2]
[346554243,1735081837613,-1097.95,0.00012994,2]
[346554244,1735081837622,-500.0,0.00012994,2]
[346554246,1735081837632,-500.0,0.00012994,2]
[346554248,1735081837641,-702.69,0.00012994,2]
[346554249,1735081837650,-500.0,0.00012994,2]
[346554250,1735081837659,-500.0,0.00012994,2]
[346554251,1735081837669,-10884.92,0.00012994,2]
[346554252,1735081837677,-500.0,0.00012994,2]
[346554253,1735081837686,-812.28,0.00012994,2]
[346554254,1735081837695,-632.71,0.00012994,2]
[346554255,1735081837705,-500.0,0.00012994,2]
[346554256,1735081837714,-500.0,0.00012994,2]
[346554257,1735081837725,-3858.24,0.00012994,2]
[346554258,1735081837734,-4922.86,0.00012994,2]
[346554259,1735081837744,-500.0,0.00012994,2]
[346554260,1735081837753,-500.0,0.00012994,2]
[346554261,1735081837763,-4181.0,0.00012994,2]
[346554262,1735081837772,-500.0,0.00012994,2]
[346554263,1735081837782,-500.0,0.00012994,2]
[346554264,1735081837791,-500.0,0.00012994,2]
[346554265,1735081837803,-1765.21,0.00012994,2]
[346554266,1735081837813,-500.0,0.00012994,2]
[346554267,1735081837822,-500.0,0.00012994,2]
[346554268,1735081837833,-530.62,0.00012994,2]
[346554269,1735081837842,-782.96,0.00012994,2]
[346554270,1735081837851,-500.0,0.00012994,2]
[346554271,1735081837861,-500.0,0.00012994,2]
[346554272,1735081837870,-500.0,0.00012994,2]
[346554273,1735081837879,-500.0,0.00012994,2]
[346554274,1735081837889,-1772.79,0.00012994,2]
[346554275,1735081837898,-2372.73,0.00012994,2]
[346554276,1735081837907,-7676.43,0.00012994,2]
[346554277,1735081837916,-500.0,0.00012994,2]
[346554278,1735081837925,-500.0,0.00012994,2]
[346554279,1735081837935,-2318.4,0.00012994,2]
[346554280,1735081837944,-955.92,0.00012994,2]
[346554281,1735081837953,-500.0,0.00012994,2]
[346554282,1735081837963,-500.0,0.00012994,2]
[346554283,1735081837973,-500.0,0.00012994,2]
[346554284,1735081837982,-11286.55,0.00012994,2]
[346554285,1735081837992,-500.0,0.00012994,2]
[346554286,1735081838001,-500.0,0.00012994,2]
[346554287,1735081838011,-1183.24,0.00012994,2]
[346554288,1735081838020,-828.39,0.00012994,2]
[346554290,1735081838029,-506.06169043,0.00012994,2]
[346554291,1735081838039,-500.0,0.00012994,2]
[346554292,1735081838049,-500.0,0.00012994,2]
[346554293,1735081838058,-500.0,0.00012994,2]
[346554294,1735081838067,-11340.97,0.00012994,2]
[346554295,1735081838079,-6818.29,0.00012994,2]
[346554296,1735081838088,-500.0,0.00012994,2]
[346554297,1735081838097,-500.0,0.00012994,2]
[346554298,1735081838106,-500.0,0.00012994,2]
[346554299,1735081838115,-500.0,0.00012994,2]
[346554300,1735081838124,-500.0,0.00012994,2]
[346554301,1735081838133,-533.13,0.00012994,2]
[346554302,1735081838143,-500.0,0.00012994,2]
[346554303,1735081838152,-2117.62,0.00012994,2]
[346554304,1735081838161,-543.21601241,0.00012994,2]
[346554305,1735081838170,-500.0,0.00012994,2]
[346554306,1735081838179,-939.99,0.00012994,2]
[346554307,1735081838188,-500.0,0.00012994,2]
[346554308,1735081838198,-500.0,0.00012994,2]
[346554309,1735081838207,-1264.24,0.00012994,2]
[346554310,1735081838217,-11548.02,0.00012994,2]
[346554311,1735081838229,-500.0,0.00012994,2]
[346554312,1735081838238,-500.0,0.00012994,2]
[346554313,1735081838247,-1823.17,0.00012994,2]
[346554314,1735081838256,-500.0,0.00012994,2]
[346554315,1735081838264,-500.0,0.00012994,2]
[346554316,1735081838273,-500.0,0.00012994,2]
[346554317,1735081838282,-500.0,0.00012994,2]
[346554318,1735081838291,-500.0,0.00012994,2]
[346554319,1735081838301,-500.0,0.00012994,2]
[346554320,1735081838310,-500.0,0.00012994,2]
[346554321,1735081838319,-527.64264665,0.00012994,2]
[346554322,1735081838331,-500.0,0.00012994,2]
[346554323,1735081838340,-500.0,0.00012994,2]
[346554324,1735081838349,-500.0,0.00012994,2]
[346554325,1735081838359,-500.0,0.00012994,2]
[346554326,1735081838368,-500.0,0.00012994,2]
[346554327,1735081838377,-913.97,0.00012994,2]
[346554328,1735081838387,-3191.02,0.00012994,2]
[346554329,1735081838397,-500.0,0.00012994,2]
[346554330,1735081838406,-500.0,0.00012994,2]
[346554331,1735081838416,-2810.05,0.00012994,2]
[346554332,1735081838425,-500.0,0.00012994,2]
[346554333,1735081838434,-500.0,0.00012994,2]
[346554334,1735081838443,-500.0,0.00012994,2]
[346554335,1735081838452,-500.0,0.00012994,2]
[346554336,1735081838461,-500.0,0.00012994,2]
[346554337,1735081838470,-500.0,0.00012994,2]
[346554338,1735081838640,-1933.65,0.00012994,2]
[346554339,1735081838650,-500.0,0.00012994,2]
[346554340,1735081838659,-500.0,0.00012994,2]
[346554341,1735081838668,-1688.14,0.00012994,2]
[346554342,1735081838678,-500.0,0.00012994,2]
[346554343,1735081838687,-500.0,0.00012994,2]
[346554344,1735081838696,-659.94,0.00012994,2]
[346554345,1735081838705,-644.1,0.00012994,2]
[346554346,1735081838714,-534.90606324,0.00012994,2]
[346554347,1735081838724,-500.0,0.00012994,2]
[346554348,1735081838735,-500.0,0.00012994,2]
[346554349,1735081838744,-354.64732952,0.00012994,2]
[346554350,1735081838753,-500.0,0.00012994,2]
[346554351,1735081838762,-1105.54,0.00012994,2]
[346554352,1735081838773,-1833.39,0.00012994,2]
[346554353,1735081838782,-500.0,0.00012994,2]
[346554354,1735081838791,-4797.86,0.00012994,2]
[346554355,1735081838800,-288.02553582,0.00012994,2]
[346554356,1735081838810,-500.0,0.00012994,2]
[346554357,1735081838819,-500.0,0.00012994,2]
[346554358,1735081838830,-501.06640352,0.00012994,2]
[346554359,1735081838839,-501.39599672,0.00012994,2]
[346554360,1735081838848,-1446.57,0.00012994,2]
[346554361,1735081838857,-500.0,0.00012994,2]
[346554362,1735081838866,-500.0,0.00012994,2]
[346554363,1735081838875,-500.0,0.00012994,2]
[346554364,1735081838884,-1845.4,0.00012994,2]
[346554365,1735081838894,-1841.86,0.00012994,2]
[346554366,1735081838903,-500.0,0.00012994,2]
[346554367,1735081838912,-500.0,0.00012994,2]
[346554368,1735081838921,-1104.07,0.00012994,2]
[346554369,1735081838930,-500.0,0.00012994,2]
[346554370,1735081838939,-500.0,0.00012994,2]
[346554371,1735081838948,-500.85958128,0.00012994,2]
[346554372,1735081838957,-500.0,0.00012994,2]
[346554373,1735081838967,-503.55078844,0.00012994,2]
[346554374,1735081838976,-500.0,0.00012994,2]
[346554375,1735081838985,-850.27,0.00012994,2]
[346554376,1735081838995,-500.0,0.00012994,2]
[346554377,1735081839004,-500.0,0.00012994,2]
[346554378,1735081839013,-1853.24,0.00012994,2]
[346554379,1735081839023,-500.0,0.00012994,2]
[346554380,1735081839032,-1282.07,0.00012994,2]
[346554381,1735081839041,-2422.13,0.00012994,2]
[346554382,1735081839051,-4049.27,0.00012994,2]
[346554383,1735081839059,-864.49,0.00012994,2]
[346554384,1735081839068,-412.27931548,0.00012994,2]
[346554385,1735081839079,-500.0,0.00012994,2]
[346554386,1735081839087,-500.61826408,0.00012994,2]
[346554387,1735081839097,-2866.78,0.00012994,2]
[346554388,1735081839106,-502.57526353,0.00012994,2]
[346554389,1735081839115,-500.0,0.00012994,2]
[346554390,1735081839124,-500.0,0.00012994,2]
[346554391,1735081839133,-500.0,0.00012994,2]
[346554392,1735081839142,-4302.67,0.00012994,2]
[346554393,1735081839151,-500.0,0.00012994,2]
[346554394,1735081839160,-753.2,0.00012994,2]
[346554395,1735081839169,-500.0,0.00012994,2]
[346554396,1735081839178,-500.0,0.00012994,2]
[346554397,1735081839187,-2909.79,0.00012994,2]
[346554398,1735081839197,-500.0,0.00012994,2]
[346554399,1735081839206,-500.0,0.00012994,2]
[346554400,1735081839215,-4028.15,0.00012994,2]
[346554401,1735081839224,-504.09,0.00012994,2]
[346554402,1735081839233,-501.89077419,0.00012994,2]
[346554403,1735081839242,-1129.6,0.00012994,2]
[346554404,1735081839251,-3754.16,0.00012994,2]
[346554405,1735081839260,-500.0,0.00012994,2]
[346554406,1735081839270,-1956.63,0.00012994,2]
[346554407,1735081839279,-5827.05,0.00012994,2]
[346554408,1735081839288,-500.0,0.00012994,2]
[346554409,1735081839297,-4363.64,0.00012994,2]
[346554410,1735081839306,-500.0,0.00012994,2]
[346554411,1735081839316,-2111.07,0.00012994,2]
[346554412,1735081839327,-500.0,0.00012994,2]
[346554413,1735081839337,-500.0,0.00012994,2]
[346554414,1735081839347,-500.0,0.00012994,2]
[346554415,1735081839356,-947.52,0.00012994,2]
[346554416,1735081839365,-637.45,0.00012994,2]
[346554417,1735081839374,-164.45902278,0.00012994,2]
[346554418,1735081839384,-500.0,0.00012994,2]
[346554419,1735081839393,-2451.31,0.00012994,2]
[346554420,1735081839402,-500.0,0.00012994,2]
[346554421,1735081839412,-450.05700553,0.00012994,2]
[346554422,1735081839421,-504.82247512,0.00012994,2]
[346554423,1735081839431,-500.0,0.00012994,2]
[346554424,1735081839440,-500.0,0.00012994,2]
[346554425,1735081839449,-741.0,0.00012994,2]
[346554426,1735081839458,-500.0,0.00012994,2]
[346554427,1735081839467,-500.0,0.00012994,2]
[346554428,1735081839477,-500.0,0.00012994,2]
[346554429,1735081839486,-4791.25,0.00012994,2]
[346554430,1735081839496,-3832.58,0.00012994,2]
[346554431,1735081839506,-500.0,0.00012994,2]
[346554432,1735081839515,-500.0,0.00012994,2]
[346554433,1735081839525,-500.0,0.00012994,2]
[346554434,1735081839534,-500.0,0.00012994,2]
[346554435,1735081839543,-5832.41,0.00012994,2]
[346554436,1735081839553,-348.00470177,0.00012994,2]
[346554437,1735081839562,-500.0,0.00012994,2]
[346554438,1735081839571,-810.32,0.00012994,2]
[346554439,1735081839581,-500.0,0.00012994,2]
[346554440,1735081839591,-2948.34,0.00012994,2]
[346554441,1735081839601,-1111.45370822,0.00012995,2]
[346554442,1735081839611,-1801.36,0.00012995,2]
[346554443,1735081839620,-2754.98,0.00012995,2]
[346554444,1735081839630,-2095.65,0.00012995,2]
[346554445,1735081839639,-500.0,0.00012995,2]
[346554446,1735081839649,-500.0,0.00012995,2]
[346554447,1735081839659,-500.0,0.00012995,2]
[346554448,1735081839668,-2315.52,0.00012995,2]
[346554449,1735081839678,-500.0,0.00012995,2]
[346554450,1735081839687,-1325.35,0.00012995,2]
[346554451,1735081839697,-500.0,0.00012995,2]
[346554452,1735081839707,-3527.31,0.00012995,2]
[346554453,1735081839716,-2606.94,0.00012995,2]
[346554454,1735081839728,-3381.86,0.00012995,2]
[346554455,1735081839737,-500.0,0.00012995,2]
[346554456,1735081839747,-3598.09,0.00012995,2]
[346554457,1735081839756,-500.0,0.00012995,2]
[346554458,1735081839766,-1880.27,0.00012995,2]
[346554459,1735081839777,-2768.78,0.00012995,2]
[346554460,1735081839786,-650.28,0.00012995,2]
[346554461,1735081839797,-2263.84,0.00012995,2]
[346554462,1735081839807,-1529.64,0.00012995,2]
[346554463,1735081839817,-500.0,0.00012995,2]
[346554464,1735081839826,-1531.17,0.00012995,2]
[346554465,1735081839836,-1945.0,0.00012995,2]
[346554466,1735081839845,-2473.12,0.00012995,2]
[346554467,1735081839854,-500.0,0.00012995,2]
[346554468,1735081839864,-500.0,0.00012995,2]
[346554469,1735081839873,-677.5,0.00012995,2]
[346554470,1735081839883,-2704.22,0.00012995,2]
[346554471,1735081839894,-500.0,0.00012995,2]
[346554472,1735081839903,-970.02,0.00012995,2]
[346554473,1735081839913,-1820.18,0.00012995,2]
[346554474,1735081839922,-742.86,0.00012995,2]
[346554475,1735081839931,-2294.94,0.00012995,2]
[346554476,1735081839940,-1179.83,0.00012995,2]
[346554477,1735081839950,-500.0,0.00012995,2]
[346554478,1735081839959,-500.0,0.00012995,2]
[346554479,1735081839968,-1588.24,0.00012995,2]
[346554480,1735081839978,-1279.34,0.00012995,2]
[346554481,1735081839988,-309.41507795,0.00012995,2]
[346554482,1735081839997,-2027.08,0.00012995,2]
[346554483,1735081840006,-1899.89,0.00012995,2]
[346554484,1735081840015,-1266.24,0.00012995,2]
[346554485,1735081840025,-1286.1,0.00012995,2]
[346554486,1735081840034,-3357.67,0.00012995,2]
[346554487,1735081840043,-1526.43,0.00012995,2]
[346554488,1735081840053,-500.0,0.00012995,2]
[346554489,1735081840062,-500.0,0.00012995,2]
[346554490,1735081840071,-500.0,0.00012995,2]
[346554491,1735081840082,-500.0,0.00012995,2]
[346554492,1735081840091,-1827.24,0.00012995,2]
[346554493,1735081840100,-1183.72,0.00012995,2]
[346554494,1735081840109,-2192.17,0.00012995,2]
[346554496,1735081840119,-1610.09,0.00012995,2]
[346554497,1735081840128,-500.0,0.00012995,2]
[346554498,1735081840137,-833.79,0.00012995,2]
[346554499,1735081840146,-2775.48,0.00012995,2]
[346554500,1735081840155,-841.42,0.00012995,2]
[346554501,1735081840164,-9416.61,0.00012995,2]
[346554502,1735081840173,-500.0,0.00012995,2]
[346554504,1735081840182,-11839.15,0.00012995,2]
[346554505,1735081840192,-3008.91,0.00012995,2]
[346554507,1735081840202,-69472.24,0.00012995,2]
[346554509,1735081840211,-500.0,0.00012995,2]
[346554511,1735081840220,-1767.35,0.00012995,2]
[346554512,1735081840229,-500.0,0.00012995,2]
[346554514,1735081840239,-509.45764662,0.00012995,2]
[346554516,1735081840248,-8439.66,0.00012995,2]
[346554517,1735081840257,-2377.51,0.00012995,2]
[346554519,1735081840267,-500.0,0.00012995,2]
[346554522,1735081840276,-4767.18,0.00012995,2]
[346554524,1735081840285,-2878.12,0.00012995,2]
[346554526,1735081840294,-3129.22,0.00012995,2]
[346554528,1735081840303,-500.0,0.00012995,2]
[346554529,1735081840312,-2471.34,0.00012995,2]
[346554531,1735081840321,-2253.11,0.00012995,2]
[346554533,1735081840331,-2125.85,0.00012995,2]